fUST/lending_fUST_20240302
["ID","MTS","AMOUNT","RATE_DAILY","PERIOD"]
[316127828,1709365834941,-238.50130044,0.00023998,2]
[316127829,1709365834950,-500.0,0.00023998,2]
[316127830,1709365834960,-500.0,0.00023998,2]
[316127831,1709365834970,-343.1252236,0.00023998,2]
[316127832,1709365834979,-1030.07,0.00023998,2]
[316127833,1709365834988,-500.0,0.00023998,2]
[316127834,1709365834997,-500.0,0.00023998,2]
[316127835,1709365835007,-321.4643478,0.00023999,2]
[316127836,1709365835016,-274.0783514,0.00023999,2]
[316127837,1709365835026,-500.0,0.00023999,2]
[316127838,1709365835036,-500.0,0.00023999,2]
[316127839,1709365835045,-500.0,0.00023999,2]
[316127840,1709365835055,-500.0,0.00023999,2]
[316127841,1709365835065,-206.8947764,0.00023999,2]
[316127842,1709365835075,-500.0,0.00023999,2]
[316127843,1709365835086,-500.0,0.00023999,2]
[316127844,1709365835095,-500.0,0.00023999,2]
[316127845,1709365835105,-568.36434638,0.00023999,2]
[316127846,1709365835115,-500.0,0.00023999,2]
[316127847,1709365835124,-500.0,0.00023999,2]
[316127848,1709365835134,-500.0,0.00023999,2]
[316127849,1709365835143,-500.0,0.00023999,2]
[316127850,1709365835153,-499.99999999,0.00023999,2]
[316127851,1709365835163,-1000.0,0.00023999,7]
[316127852,1709365835172,-500.0,0.00023999,2]
[316127853,1709365835182,-500.0,0.00023999,2]
[316127854,1709365835191,-500.0,0.00023999,2]
[316127855,1709365835200,-452.65639527,0.00023999,2]
[316127856,1709365835209,-1030.07,0.00023999,2]
[316127857,1709365835219,-1030.07,0.00023999,2]
[316127858,1709365835229,-1030.07,0.00023999,2]
[316127859,1709365835238,-1030.07,0.00023999,2]
[316127860,1709365835247,-1030.07,0.00023999,2]
[316127861,1709365835256,-1030.07,0.00023999,2]
[316127862,1709365835265,-1030.07,0.00023999,2]
[316127863,1709365835274,-1030.07,0.00023999,2]
[316127864,1709365835283,-1030.07,0.00023999,2]
[316127865,1709365835293,-1030.07,0.00023999,2]
[316127866,1709365835303,-1030.07,0.00023999,2]
[316127867,1709365835312,-1030.07,0.00023999,2]
[316127868,1709365835321,-1030.07,0.00023999,2]
[316127869,1709365835330,-1030.07,0.00023999,2]
[316127870,1709365835339,-1030.07,0.00023999,2]
[316127871,1709365835349,-1030.07,0.00023999,2]
[316127872,1709365835358,-1030.07,0.00023999,2]
[316127873,1709365835368,-1030.07,0.00023999,2]
[316127874,1709365835377,-1030.07,0.00023999,2]
[316127875,1709365835386,-1030.07,0.00023999,2]
[316127876,1709365835395,-1030.07,0.00023999,2]
[316127877,1709365835405,-1030.08,0.00023999,2]
[316127878,1709365835414,-500.0,0.00023999,2]
[316127879,1709365835424,-500.0,0.00023999,2]
[316127880,1709365835434,-500.0,0.00023999,2]
[316127881,1709365835444,-500.0,0.00023999,2]
[316127882,1709365835453,-500.0,0.00023999,2]
[316127883,1709365835463,-500.0,0.00023999,2]
[316127884,1709365835472,-500.0,0.00023999,2]
[316127885,1709365835482,-500.0,0.00023999,2]
[316127886,1709365835491,-631.78,0.00023999,2]
[316127887,1709365835503,-500.0,0.00023999,2]
[316127888,1709365835514,-500.0,0.00023999,2]
[316127889,1709365835524,-462.60524936,0.00024,3]
[316127890,1709365835533,-1307543.38103993,0.00024,5]
[316127891,1709365835551,-3207.3041967,0.00024,5]
[316127956,1709365839477,-9478.64464502,0.00024,5]
[316127958,1709365839489,-26093.74380895,0.00024,5]
[316127960,1709365839501,-4368.11373012,0.00024,5]
[316127962,1709365839517,-398.91568317,0.00024,5]
[316127965,1709365839532,-1360925.43420109,0.00024,5]
[316128279,1709365843257,-150.89,0.0002399,3]
[316128281,1709365843267,-3927.78601698,0.00024,5]
[316128283,1709365843278,-5625.0,0.00024,5]
[316128436,1709365844873,-1039.53501692,0.00024,5]
[316128447,1709365846416,-244429.08820167,0.00024,5]
[316128448,1709365846428,-6903.30909138,0.00024,5]
[316128449,1709365846441,-1475.37000758,0.00024,5]
[316128452,1709366021541,-201.25982309,0.00025,30]
[316128453,1709366021584,-538.51765562,0.00027,30]
[316128455,1709366034462,689.64126037,0.00027,30]
[316128456,1709366037650,-900000.0,0.00024876,60]
[316128457,1709366042051,-900000.0,0.00024876,60]
[316128458,1709366046019,-900000.0,0.00024876,60]
[316128471,1709366383279,310.0,0.000274,120]
[316128511,1709367032524,-623.51457939,0.0001896,2]
[316128513,1709367032534,-155.00310006,0.00018961,2]
[316128515,1709367032543,-400.60516941,0.00018961,2]
[316128518,1709367032553,-534.56629894,0.00019,2]
[316128520,1709367032563,-183.552779,0.00019498,2]
[316128521,1709367032572,-4200.12399663,0.00020996,2]
[316128617,1709367038498,-1426.77,0.00020996,2]
[316128815,1709367044642,-2384.207922,0.00020996,2]
[316128817,1709367044651,-8443.31756199,0.00020997,2]
[316128819,1709367044660,-290.25464605,0.00020998,2]
[316129240,1709367049557,-1032.36645246,0.00020998,2]
[316129247,1709367049621,-543.59452264,0.00020998,2]
[316129281,1709368232780,-623.51457939,0.0001889,2]
[316129283,1709368232790,-208.71529326,0.0001889,2]
[316129285,1709368232800,-155.00155002,0.00018891,2]
[316129287,1709368232809,-228.46980499,0.000189,2]
[316129343,1709368239698,-92.08004373,0.000189,2]
[316129344,1709368239708,-265.72595627,0.00019999,2]
[316129346,1709368239720,-341.1662148,0.00019999,2]
[316129348,1709368239732,-9376.07267601,0.00019999,2]
[316129350,1709368239741,-2425.45698988,0.0002,2]
[316129352,1709368239752,-2681.76171038,0.0002,2]
[316129353,1709368239763,-7791.78129974,0.0002,2]
[316129354,1709368239772,-1744.85319843,0.0002,2]
[316129493,1709368244313,-1150.63132492,0.0002,2]
[316129496,1709368244324,-7104.51547665,0.0002,2]
[316129497,1709368244333,-500.0,0.00020997,2]
[316129499,1709368244343,-500.0,0.00020997,2]
[316129501,1709368244353,-502.15982767,0.00020997,2]
[316129503,1709368244362,-507.2202052,0.00020997,2]
[316129505,1709368244371,-500.4411491,0.00020997,2]
[316129507,1709368244380,-500.0,0.00020997,2]
[316129509,1709368244389,-500.0,0.00020997,2]
[316129511,1709368244401,-500.0,0.00020997,2]
[316129513,1709368244411,-500.0,0.00020997,2]
[316129515,1709368244420,-7178.57822717,0.00020998,2]
[316129517,1709368244432,-4384.51931736,0.00020998,2]
[316129694,1709368275349,186.68255246,0.0001879,2]
[316129697,1709369006834,486.59306532,0.00018694,2]
[316129698,1709369015074,969.87950854,0.00018693,2]
[316129831,1709369434337,-208.71529326,0.00018863,2]
[316129832,1709369434348,-1634.92402933,0.00018864,2]
[316129833,1709369434357,-623.51457939,0.00018865,2]
[316129834,1709369434367,-8011.10191863,0.00018866,2]
[316129835,1709369434376,-1292.52500493,0.000189,2]
[316129836,1709369434386,-23310.4041471,0.00019628,2]
[316129837,1709369434395,-241.732758,0.00019752,2]
[316129838,1709369434405,-180.26088486,0.00020997,2]
[316129839,1709369434414,-540.16704253,0.00020997,2]
[316129840,1709369434423,-644.03589159,0.00020997,2]
[316129841,1709369434433,-500.0,0.00020997,2]
[316129842,1709369434443,-500.26641198,0.00020997,2]
[316129843,1709369434453,-500.42611962,0.00020997,2]
[316129844,1709369434463,-500.0,0.00020997,2]
[316129845,1709369434472,-500.0,0.00020997,2]
[316129846,1709369434482,-500.0,0.00020997,2]
[316129847,1709369434492,-500.0,0.00020997,2]
[316129848,1709369434501,-309.68905859,0.00020997,2]
[316129849,1709369434511,-500.0,0.00020997,2]
[316129850,1709369434521,-500.51426472,0.00020997,2]
[316129851,1709369434531,-501.17573636,0.00020997,2]
[316129852,1709369434539,-501.71279349,0.00020997,2]
[316129853,1709369434548,-502.02381159,0.00020997,2]
[316129854,1709369434559,-500.0,0.00020997,2]
[316129855,1709369434569,-500.0,0.00020997,2]
[316129856,1709369434578,-500.0,0.00020997,2]
[316129857,1709369434587,-500.0,0.00020997,2]
[316129858,1709369434596,-505.91702289,0.00020997,2]
[316129859,1709369434606,-504.12927821,0.00020997,2]
[316129860,1709369434615,-500.0,0.00020997,2]
[316129861,1709369434625,-500.0,0.00020997,2]
[316129862,1709369434634,-500.0,0.00020997,2]
[316129863,1709369434644,-501.82692916,0.00020997,2]
[316129864,1709369434653,-268.55563024,0.00020997,2]
[316129865,1709369434663,-500.0,0.00020997,2]
[316129866,1709369434672,-501.38821175,0.00020997,2]
[316129867,1709369434683,-528.52745878,0.00020997,2]
[316129868,1709369434692,-500.0,0.00020997,2]
[316129869,1709369434701,-500.66749868,0.00020997,2]
[316129870,1709369434710,-500.0,0.00020997,2]
[316129871,1709369434719,-500.0,0.00020997,2]
[316129872,1709369434730,-500.0,0.00020997,2]
[316129873,1709369434739,-500.0,0.00020997,2]
[316129874,1709369434749,-500.0,0.00020997,2]
[316129875,1709369434758,-388.41501408,0.00020997,2]
[316129876,1709369434768,-500.0,0.00020997,2]
[316129877,1709369434777,-1160.09807739,0.00020998,2]
[316129878,1709369434787,-249.00362,0.00021732,2]
[316129879,1709369434796,-585.03189378,0.00021998,2]
[316129880,1709369434805,-500.0,0.00021998,2]
[316129881,1709369434815,-500.0,0.00021998,2]
[316129882,1709369434824,-502.80783652,0.00021998,2]
[316129883,1709369434834,-243.52179533,0.00021998,2]
[316129884,1709369434843,-500.0,0.00021998,2]
[316129885,1709369434853,-500.0,0.00021998,2]
[316129886,1709369434862,-500.0,0.00021998,2]
[316129887,1709369434871,-500.58733418,0.00021998,2]
[316129888,1709369434881,-500.30285752,0.00021998,2]
[316129889,1709369434890,-500.0,0.00021998,2]
[316129890,1709369434899,-170.27526724,0.00021998,2]
[316129891,1709369434908,-500.0,0.00021998,2]
[316129892,1709369434918,-500.0,0.00021998,2]
[316129893,1709369434928,-500.0,0.00021998,2]
[316129894,1709369434938,-605.79,0.00021998,2]
[316129895,1709369434948,-500.0,0.00021998,2]
[316129896,1709369434957,-500.0,0.00021998,2]
[316129897,1709369434966,-500.0,0.00021998,2]
[316129898,1709369434975,-500.0,0.00021998,2]
[316129899,1709369434985,-500.0,0.00021998,2]
[316129900,1709369434994,-500.0,0.00021998,2]
[316129901,1709369435003,-555.83378087,0.00021998,2]
[316129902,1709369435014,-500.0,0.00021998,2]
[316129903,1709369435024,-500.0,0.00021998,2]
[316129904,1709369435034,-500.0,0.00021998,2]
[316129905,1709369435045,-503.1181522,0.00021998,2]
[316129906,1709369435055,-500.0,0.00021998,2]
[316129907,1709369435065,-500.0,0.00021998,2]
[316129908,1709369435075,-225.25777212,0.00021998,2]
[316129909,1709369435086,-242.63658915,0.00021998,2]
[316129910,1709369435097,-500.0,0.00021999,2]
[316129911,1709369435108,-500.0,0.00021999,2]
[316129912,1709369435119,-500.0,0.00021999,2]
[316129913,1709369435130,-500.0,0.00021999,2]
[316129914,1709369435139,-500.0,0.00021999,2]
[316129915,1709369435148,-500.0,0.00021999,2]
[316129916,1709369435158,-500.0,0.00021999,2]
[316129917,1709369435167,-271.88752928,0.00021999,2]
[316129918,1709369435178,-10955.3,0.00022,2]
[316129919,1709369435187,-5065.78258731,0.00022,5]
[316129920,1709369435197,-401.462595,0.00022,2]
[316129921,1709369435206,-153.0,0.00022,2]
[316129922,1709369435216,-153.0,0.00022,2]
[316129923,1709369435225,-154.1657352,0.00022,2]
[316129924,1709369435234,-153.0,0.00022,2]
[316129925,1709369435244,-153.0,0.00022,2]
[316129926,1709369435253,-157.1486779,0.00022,2]
[316129927,1709369435262,-327.2251864,0.00022114,2]
[316129928,1709369435272,-437.46567002,0.00022116,2]
[316129929,1709369435281,-203.03186502,0.00022116,2]
[316129930,1709369435291,-153.48798426,0.00022116,2]
[316129931,1709369435300,-542.75214397,0.00022116,2]
[316129932,1709369435308,-478.98,0.00022124,3]
[316129933,1709369435317,-1718.52727965,0.00022129,4]
[316129934,1709369435327,-678.51583944,0.00022129,4]
[316129935,1709369435336,-5000.0,0.00022129,5]
[316129936,1709369435345,-500.0,0.00022133,2]
[316129937,1709369435354,-500.0,0.00022133,2]
[316129938,1709369435364,-379.06277227,0.00022133,2]
[316129939,1709369435373,-500.0,0.00022133,2]
[316129940,1709369435382,-511.66,0.00022133,2]
[316129941,1709369435391,-500.0,0.00022133,2]
[316129942,1709369435400,-155.01,0.00022133,2]
[316129943,1709369435409,-500.0,0.00022133,2]
[316129944,1709369435419,-154.15,0.00022133,2]
[316129945,1709369435428,-500.0,0.00022133,2]
[316129946,1709369435438,-30001.79364668,0.00022134,4]
[316129947,1709369435446,-553.60382605,0.00022999,2]
[316129948,1709369435456,-500.0,0.00022999,2]
[316129949,1709369435465,-591.42,0.00022999,2]
[316129950,1709369435474,-500.0,0.00022999,2]
[316129951,1709369435483,-223.85407713,0.00022999,2]
[316129952,1709369435496,-276.14592287,0.00022999,2]
[316129953,1709369435506,-1531.15376713,0.00023,2]
[316130313,1709369441054,-1750.0,0.00022137,4]
[316130315,1709369441063,-8504.48364634,0.00023,2]
[316130523,1709369442927,-1340.38297537,0.00023,2]
[316131670,1709370214346,241.732758,0.00018673,2]
[316131672,1709370298692,10000.0,0.000188,2]
[316131673,1709370311186,8726.26,0.000188,2]
[316131674,1709370326777,230.5517118,0.00018673,2]
[316131677,1709370569040,1634.92402933,0.00018799,2]
[316131683,1709370574344,208.71529326,0.00018799,2]
[316131689,1709370608041,623.51457939,0.00018799,2]
[316131747,1709370632133,-719.6852547,0.000188,2]
[316131749,1709370632142,-861.68333662,0.000189,2]
[316131751,1709370632151,-9691.80048507,0.00019,2]
[316131755,1709370632189,-2823.22549408,0.00019,2]
[316131756,1709370632199,-12832.70446215,0.00019,2]
[316131757,1709370632212,-8920.44368393,0.00019,2]
[316131951,1709370638032,-1100.06379717,0.00019,2]
[316131965,1709370641118,-1298.43728682,0.00019,2]
[316132215,1709370774184,154.0,0.0003,120]
[316132217,1709371006967,24900.0,0.00018002,2]
[316132218,1709371104323,1169.027449,0.00018216,2]
[316132219,1709371242793,65650.43745806,0.00018216,2]
[316132220,1709371245276,271.55695118,0.00018216,2]
[316132221,1709371352414,159.66,0.0001899,3]
[316132222,1709371363174,478.98,0.0001899,3]
[316132223,1709371404360,319.32,0.0001899,3]
[316132224,1709371452409,4875.4781659,0.00017529,2]
[316132226,1709371522332,43766.95830537,0.00017529,2]
[316132228,1709371532889,1885.8269543,0.00017429,2]
[316132229,1709371540824,36472.46525448,0.00017529,2]
[316132232,1709371562829,19002.15439758,0.00017529,2]
[316132233,1709371576835,19002.15439758,0.00017529,2]
[316132235,1709371594825,19002.15439758,0.00017529,2]
[316132238,1709371614833,19002.15439758,0.00017529,2]
[316132239,1709371626497,175.946395,0.00017352,2]
[316132240,1709371633030,19002.15439758,0.00017529,2]
[316132243,1709371637677,1634.92402933,0.00017528,2]
[316132255,1709371652835,19002.15439758,0.00017529,2]
[316132277,1709371675223,250.0,0.00017337,2]
[316132278,1709371676845,19002.15439758,0.00017529,2]
[316132279,1709371692837,19002.15439758,0.00017529,2]
[316132280,1709371697132,569.5259808,0.00017271,2]
[316132281,1709371710842,19002.15439758,0.00017529,2]
[316132282,1709371718041,290.12603594,0.00017528,2]
[316132283,1709371732858,19002.15439758,0.00017529,2]
[316132286,1709371759358,19002.15439758,0.00017528,2]
[316132288,1709371773347,9539.53620232,0.00017528,2]
[316132336,1709371833918,-208.71529326,0.00017802,2]
[316132338,1709371833927,-623.51457939,0.00017802,2]
[316132350,1709371834031,-428.64453393,0.00017803,2]
[316132352,1709371834040,-466.66441698,0.00017812,2]
[316132355,1709371834050,-218.35615392,0.00018899,2]
[316132356,1709371834060,-3381.68313017,0.00018899,2]
[316132359,1709371834072,-4629.41878846,0.00018899,2]
[316132361,1709371834081,-623.89086739,0.000189,2]
[316132363,1709371834093,-1301.57808158,0.000189,2]
[316132365,1709371834102,-300.0,0.00018999,2]
[316132367,1709371834111,-753.83652965,0.00019,2]
[316132369,1709371834121,-47711.15424028,0.00019,2]
[316132371,1709371834131,-500.0,0.00019178,2]
[316132373,1709371834140,-180.753414,0.00019178,2]
[316132375,1709371834149,-165.138624,0.00019178,2]
[316132377,1709371834158,-2165.18799142,0.0002,2]
[316132379,1709371834167,-632.64477132,0.00020547,2]
[316132381,1709371834176,-500.0,0.00020547,2]
[316132383,1709371834185,-500.0,0.00020547,2]
[316132384,1709371834194,-435.3883197,0.00020547,2]
[316132387,1709371834206,-500.0,0.00020547,2]
[316132388,1709371834216,-500.0,0.00020547,2]
[316132390,1709371834226,-508.29658965,0.00020547,2]
[316132393,1709371834236,-500.0,0.00020547,2]
[316132394,1709371834247,-500.0,0.00020547,2]
[316132397,1709371834256,-500.0,0.00020547,2]
[316132398,1709371834266,-500.0,0.00020547,2]
[316132400,1709371834278,-500.0,0.00020547,2]
[316132402,1709371834288,-500.0,0.00020547,2]
[316132404,1709371834297,-500.0,0.00020547,2]
[316132406,1709371834306,-500.0,0.00020547,2]
[316132408,1709371834316,-541.72852774,0.00020547,2]
[316132410,1709371834325,-185.47135293,0.00020547,2]
[316132412,1709371834334,-585.5,0.00020547,2]
[316132413,1709371834344,-585.5,0.00020547,2]
[316132415,1709371834354,-500.0,0.00020547,2]
[316132417,1709371834363,-500.0,0.00020547,2]
[316132419,1709371834372,-500.0,0.00020547,2]
[316132421,1709371834382,-459.60469095,0.00020547,2]
[316132423,1709371834391,-151.0,0.00020547,2]
[316132425,1709371834400,-151.0,0.00020547,2]
[316132427,1709371834410,-500.0,0.00020547,2]
[316132429,1709371834419,-501.59237572,0.00020547,2]
[316132431,1709371834428,-500.0,0.00020547,2]
[316132433,1709371834437,-505.77640985,0.00020547,2]
[316132435,1709371834447,-500.0,0.00020547,2]
[316132437,1709371834461,-265.89786558,0.00020547,2]
[316132439,1709371834470,-500.0,0.00020547,2]
[316132441,1709371834479,-500.0,0.00020547,2]
[316132443,1709371834489,-500.0,0.00020547,2]
[316132445,1709371834499,-500.0,0.00020547,2]
[316132447,1709371834509,-334.25425222,0.00020547,2]
[316132449,1709371834519,-500.0,0.00020547,2]
[316132451,1709371834528,-500.0,0.00020547,2]
[316132453,1709371834537,-502.09301613,0.00020547,2]
[316132455,1709371834546,-153.428137,0.00020547,2]
[316132457,1709371834555,-500.0,0.00020547,2]
[316132459,1709371834566,-500.0,0.00020547,2]
[316132461,1709371834575,-500.0,0.00020547,2]
[316132463,1709371834585,-500.0,0.00020547,2]
[316132465,1709371834595,-500.0,0.00020547,2]
[316132467,1709371834605,-500.0,0.00020547,2]
[316132469,1709371834615,-500.0,0.00020547,2]
[316132471,1709371834624,-500.0,0.00020547,2]
[316132473,1709371834634,-500.0,0.00020547,2]
[316132475,1709371834643,-500.0,0.00020547,2]
[316132477,1709371834653,-500.0,0.00020547,2]
[316132479,1709371834662,-500.0,0.00020547,2]
[316132480,1709371834671,-500.0,0.00020547,2]
[316132482,1709371834681,-317.02712957,0.00020547,2]
[316132484,1709371834690,-500.0,0.00020547,2]
[316132486,1709371834700,-505.1273313,0.00020547,2]
[316132488,1709371834712,-564.2263334,0.00020547,2]
[316132490,1709371834721,-500.0,0.00020547,2]
[316132492,1709371834730,-500.0,0.00020547,2]
[316132494,1709371834739,-500.0,0.00020547,2]
[316132495,1709371834748,-500.0,0.00020547,2]
[316132496,1709371834757,-5513.17,0.00020547,2]
[316132497,1709371834767,-5513.17,0.00020547,2]
[316132498,1709371834776,-500.60471599,0.00020547,2]
[316132499,1709371834786,-500.0,0.00020547,2]
[316132501,1709371834796,-500.0,0.00020547,2]
[316132503,1709371834805,-502.64746778,0.00020547,2]
[316132505,1709371834815,-500.0,0.00020547,2]
[316132507,1709371834824,-500.0,0.00020547,2]
[316132509,1709371834833,-500.0,0.00020547,2]
[316132511,1709371834842,-500.0,0.00020547,2]
[316132513,1709371834851,-500.0,0.00020547,2]
[316132515,1709371834860,-1534.95,0.00020547,2]
[316132517,1709371834869,-1534.95,0.00020547,2]
[316132518,1709371834878,-500.0,0.00020547,2]
[316132520,1709371834888,-500.0,0.00020547,2]
[316132522,1709371834898,-500.0,0.00020547,2]
[316132524,1709371834907,-501.0694568,0.00020547,2]
[316132526,1709371834917,-500.0,0.00020547,2]
[316132528,1709371834927,-500.0,0.00020547,2]
[316132530,1709371834936,-500.0,0.00020547,2]
[316132532,1709371834945,-500.0,0.00020547,2]
[316132533,1709371834957,-500.0,0.00020547,2]
[316132534,1709371834967,-224.4656072,0.00020547,2]
[316132536,1709371834977,-500.0,0.00020547,2]
[316132538,1709371834985,-500.0,0.00020547,2]
[316132540,1709371834995,-500.0,0.00020547,2]
[316132542,1709371835004,-500.0,0.00020547,2]
[316132543,1709371835014,-500.0,0.00020547,2]
[316132545,1709371835024,-500.0,0.00020547,2]
[316132547,1709371835035,-500.0,0.00020547,2]
[316132548,1709371835048,-500.0,0.00020547,2]
[316132549,1709371835058,-500.0,0.00020547,2]
[316132550,1709371835068,-500.0,0.00020547,2]
[316132551,1709371835078,-500.0,0.00020547,2]
[316132552,1709371835088,-500.0,0.00020547,2]
[316132553,1709371835097,-500.0,0.00020547,2]
[316132554,1709371835107,-500.0,0.00020547,2]
[316132555,1709371835117,-749.44,0.00020547,2]
[316132556,1709371835127,-381.55695616,0.00020547,2]
[316132557,1709371835138,-649.49,0.00020547,2]
[316132558,1709371835147,-625.34107761,0.00020547,2]
[316132559,1709371835157,-649.49,0.00020547,2]
[316132560,1709371835168,-500.0,0.00020547,2]
[316132561,1709371835178,-502.22189341,0.00020547,2]
[316132562,1709371835188,-500.0,0.00020547,2]
[316132563,1709371835198,-500.0,0.00020547,2]
[316132564,1709371835210,-500.0,0.00020547,2]
[316132565,1709371835220,-500.0,0.00020547,2]
[316132566,1709371835230,-203.29777487,0.00020547,2]
[316132567,1709371835241,-500.0,0.00020547,2]
[316132568,1709371835250,-500.0,0.00020547,2]
[316132569,1709371835259,-500.0,0.00020547,2]
[316132570,1709371835269,-250.01023506,0.00020547,2]
[316132571,1709371835282,-500.0,0.00020547,2]
[316132572,1709371835291,-500.0,0.00020547,2]
[316132573,1709371835300,-151.847017,0.00020547,2]
[316132574,1709371835310,-623.78,0.00020547,2]
[316132575,1709371835320,-623.78,0.00020547,2]
[316132576,1709371835330,-500.0,0.00020547,2]
[316132577,1709371835340,-500.0,0.00020547,2]
[316132578,1709371835350,-500.0,0.00020547,2]
[316132579,1709371835360,-500.0,0.00020547,2]
[316132580,1709371835371,-500.0,0.00020547,2]
[316132581,1709371835381,-500.0,0.00020547,2]
[316132582,1709371835390,-500.0,0.00020547,2]
[316132583,1709371835400,-343.1252236,0.00020547,2]
[316132584,1709371835410,-500.0,0.00020547,2]
[316132585,1709371835419,-500.0,0.00020547,2]
[316132586,1709371835429,-500.0,0.00020547,2]
[316132587,1709371835439,-500.0,0.00020547,2]
[316132588,1709371835449,-501.86895136,0.00020547,2]
[316132589,1709371835461,-500.0,0.00020547,2]
[316132590,1709371835470,-429.37410099,0.00020547,2]
[316132591,1709371835480,-500.0,0.00020547,2]
[316132592,1709371835490,-171.35977871,0.00020547,2]
[316132593,1709371835501,-500.6212038,0.00020547,2]
[316132594,1709371835510,-587.73696363,0.00020547,2]
[316132595,1709371835520,-500.0,0.00020547,2]
[316132596,1709371835530,-500.0,0.00020547,2]
[316132597,1709371835539,-500.0,0.00020547,2]
[316132598,1709371835548,-3344.44,0.00020547,2]
[316132599,1709371835558,-3344.44,0.00020547,2]
[316132600,1709371835567,-664.31,0.00020547,2]
[316132601,1709371835577,-664.31,0.00020547,2]
[316132602,1709371835586,-500.0,0.00020547,2]
[316132603,1709371835595,-509.463057,0.00020547,2]
[316132604,1709371835605,-509.463057,0.00020547,2]
[316132605,1709371835614,-509.463057,0.00020547,2]
[316132606,1709371835624,-509.463057,0.00020547,2]
[316132607,1709371835633,-501.81946577,0.00020547,2]
[316132608,1709371835643,-858.77,0.00020547,2]
[316132609,1709371835652,-509.463057,0.00020547,2]
[316132610,1709371835662,-858.77,0.00020547,2]
[316132611,1709371835672,-583.39400593,0.00020547,2]
[316132612,1709371835682,-509.463057,0.00020547,2]
[316132613,1709371835692,-500.0,0.00020547,2]
[316132614,1709371835702,-509.463057,0.00020547,2]
[316132615,1709371835712,-509.463057,0.00020547,2]
[316132616,1709371835722,-290.25464605,0.00020998,2]
[316132617,1709371835732,-180.753414,0.00021422,2]
[316132618,1709371835743,-224.07182095,0.00021917,2]
[316132619,1709371835753,-1413.288124,0.00021918,2]
[316132620,1709371835763,-400.0,0.00021918,2]
[316132621,1709371835773,-151.269907,0.00021995,2]
[316132622,1709371835784,-500.0,0.00021995,2]
[316132623,1709371835793,-500.0,0.00021995,2]
[316132624,1709371835803,-500.0,0.00021995,2]
[316132625,1709371835813,-500.0,0.00021995,2]
[316132626,1709371835822,-500.0,0.00021995,2]
[316132627,1709371835832,-509.463057,0.00021995,2]
[316132628,1709371835842,-509.463057,0.00021995,2]
[316132629,1709371835852,-229.51373066,0.00021996,2]
[316132630,1709371835862,-500.0,0.00021996,2]
[316132631,1709371835874,-500.0,0.00021996,2]
[316132632,1709371835884,-500.0,0.00021996,2]
[316132633,1709371835894,-504.67792334,0.00021996,2]
[316132634,1709371835903,-500.0,0.00021996,2]
[316132635,1709371835913,-182.23530568,0.00021996,2]
[316132636,1709371835923,-500.0,0.00021996,2]
[316132637,1709371835933,-500.0,0.00021996,2]
[316132638,1709371835943,-500.0,0.00021996,2]
[316132639,1709371835954,-749.44,0.00021996,2]
[316132640,1709371835964,-500.0,0.00021996,2]
[316132641,1709371835974,-500.0,0.00021996,2]
[316132642,1709371835984,-500.0,0.00021996,2]
[316132643,1709371835994,-500.0,0.00021996,2]
[316132644,1709371836004,-500.0,0.00021996,2]
[316132645,1709371836014,-509.463057,0.00021996,2]
[316132646,1709371836023,-535.13542811,0.00021996,2]
[316132647,1709371836032,-509.463057,0.00021996,2]